bitfinex-derivatives/quotes_BTCF0:USTF0_20250827
["timestamp","ask_amount","ask_price","bid_price","bid_amount"]
[1756295731504,0.4321595,111380.0,111370.0,2.1466719]
[1756295732603,0.4321595,111380.0,111370.0,1.8466719]
[1756295732902,0.4321595,111380.0,111370.0,2.1166719]
[1756295733907,0.4061695,111380.0,111370.0,2.1166719]
[1756295735205,0.4061695,111380.0,111370.0,1.8466719]
[1756295735406,0.4061695,111380.0,111370.0,2.1266719]
[1756295737006,0.4348595,111380.0,111370.0,2.1766719]
[1756295738203,0.3732695,111380.0,111370.0,2.1766719]
[1756295738408,0.1944,111380.0,111370.0,2.1766719]
[1756295739306,0.22301,111380.0,111370.0,2.1766719]
[1756295740204,0.3127893,111380.0,111370.0,2.1766719]
[1756295740809,0.3127893,111380.0,111370.0,1.6540675]
[1756295741010,0.3127893,111380.0,111370.0,2.1766719]
[1756295744106,0.1944,111380.0,111370.0,2.80087629]
[1756295744314,0.19374,111380.0,111370.0,2.80087629]
[1756295744512,0.19374,111380.0,111370.0,2.6879741]
[1756295745310,0.23095643,111400.0,111390.0,0.0897712]
[1756295745511,0.55213643,111400.0,111390.0,2.1504556]
[1756295745710,0.68713643,111400.0,111390.0,2.1504556]
[1756295746512,0.69869361,111400.0,111390.0,2.1504556]
[1756295747315,0.70069361,111400.0,111390.0,1.97611192]
[1756295747916,0.54974781,111400.0,111390.0,1.97611192]
[1756295748116,0.42561,111400.0,111390.0,1.97611192]
[1756295749109,0.5153735,111400.0,111390.0,1.14883192]
[1756295749315,0.6349335,111400.0,111390.0,1.14883192]
[1756295749515,0.6349335,111400.0,111390.0,1.30088]
[1756295749811,0.6349335,111400.0,111390.0,1.53914072]
[1756295750015,0.6349335,111400.0,111390.0,1.86950072]
[1756295752116,0.6349335,111400.0,111390.0,1.98232421]
[1756295752312,0.6349335,111400.0,111390.0,1.53950072]
[1756295752610,0.6349335,111400.0,111390.0,1.3911713]
[1756295752816,0.6349335,111400.0,111390.0,1.95931202]
[1756295753016,0.6349335,111400.0,111390.0,1.72931202]
[1756295753211,0.6349335,111400.0,111390.0,1.94931202]
[1756295754421,0.6349335,111400.0,111390.0,0.90883202]
[1756295754617,0.6349335,111400.0,111390.0,1.62927202]
[1756295754922,0.6349335,111400.0,111390.0,1.96927202]
[1756295755324,0.48399,111400.0,111390.0,1.96927202]
[1756295755621,0.6349333,111400.0,111390.0,1.96927202]
[1756295757224,0.5737533,111400.0,111390.0,1.96927202]
[1756295757424,0.6062433,111400.0,111390.0,1.96927202]
[1756295757622,0.6349333,111400.0,111390.0,1.96927202]
[1756295757814,0.5737533,111400.0,111390.0,1.96927202]
[1756295758016,0.6349333,111400.0,111390.0,1.96927202]
[1756295758224,0.48399,111400.0,111390.0,1.96927202]
[1756295758923,0.48399,111400.0,111390.0,1.96995202]
[1756295760025,0.5737535,111400.0,111390.0,1.96995202]
[1756295760420,0.5737535,111400.0,111390.0,2.08277551]
[1756295760826,0.6062335,111400.0,111390.0,2.08277551]
[1756295761628,0.6323035,111400.0,111390.0,2.08277551]
[1756295761928,0.5737535,111400.0,111390.0,2.08277551]
[1756295763530,0.6062335,111400.0,111390.0,2.08277551]
[1756295765033,0.6323035,111400.0,111390.0,2.08277551]
[1756295766127,0.6323035,111400.0,111390.0,1.96995202]
[1756295767336,0.6323035,111400.0,111390.0,1.88290645]
[1756295767936,0.6323035,111400.0,111390.0,1.05246645]
[1756295768135,0.6323035,111400.0,111390.0,1.88234645]
[1756295770138,0.6323035,111400.0,111390.0,0.7023]
[1756295770336,0.6323035,111400.0,111390.0,1.88288635]
[1756295771137,0.6323035,111400.0,111390.0,1.05328635]
[1756295771337,0.6323035,111400.0,111390.0,1.88244635]
[1756295771931,0.89351865,111400.0,111390.0,1.53146]
[1756295772236,0.6323035,111400.0,111390.0,1.79263515]
[1756295772538,0.6323035,111400.0,111390.0,1.88240645]
[1756295772735,0.6323035,111400.0,111390.0,1.6211913]
[1756295773034,0.6323035,111400.0,111390.0,1.88240645]
[1756295775347,0.6323035,111400.0,111390.0,1.99522994]
[1756295777245,0.6323035,111400.0,111390.0,1.88240645]
[1756295777643,0.6323035,111400.0,111390.0,1.53142]
[1756295777850,0.6323035,111400.0,111390.0,1.88240585]
[1756295779050,0.4323035,111400.0,111390.0,1.88240585]
[1756295779749,0.4323035,111400.0,111390.0,1.53142]
[1756295779952,0.3723035,111400.0,111390.0,1.88240585]
[1756295780549,0.63351865,111400.0,111390.0,1.16994]
[1756295780851,0.63351865,111400.0,111390.0,1.43115515]
[1756295783157,0.63351865,111400.0,111390.0,1.16994]
[1756295783350,0.3723035,111400.0,111390.0,1.43115515]
[1756295783657,0.63351865,111400.0,111390.0,1.43115515]
[1756295783951,0.70492267,111400.0,111390.0,1.43115515]
[1756295784344,0.70492267,111400.0,111390.0,1.54412626]
[1756295785855,0.70492267,111400.0,111390.0,1.54356626]
[1756295787953,0.44370752,111400.0,111390.0,1.54356626]
[1756295790056,0.44370752,111400.0,111390.0,1.28235111]
[1756295790256,0.44370752,111400.0,111390.0,1.54356626]
[1756295791059,0.44370752,111400.0,111390.0,1.63333686]
[1756295791960,0.44370752,111400.0,111390.0,1.54356626]
[1756295795163,0.44370752,111400.0,111390.0,1.28235111]
[1756295795461,0.44370752,111400.0,111390.0,1.43059515]
[1756295797264,0.44370752,111400.0,111390.0,1.16938]
[1756295797463,0.44370752,111400.0,111390.0,1.43059515]
[1756295798866,0.70492267,111400.0,111390.0,1.43059515]
[1756295800265,0.70492267,111400.0,111390.0,1.16938]
[1756295800569,0.70492267,111400.0,111390.0,1.43059515]
[1756295802175,0.70492267,111400.0,111390.0,1.16938]
[1756295802368,0.70492267,111400.0,111390.0,1.43059515]
[1756295802772,0.70492267,111400.0,111390.0,1.16938]
[1756295802966,0.70492267,111400.0,111390.0,1.43059515]
[1756295803676,0.70492267,111400.0,111390.0,1.54356626]
[1756295803972,0.44370752,111400.0,111390.0,1.54356626]
[1756295804172,0.70492267,111400.0,111390.0,1.54356626]
[1756295804372,0.44370752,111400.0,111390.0,1.54356626]
[1756295804570,0.70492267,111400.0,111390.0,1.28235111]
[1756295804772,0.70492267,111400.0,111390.0,1.54356626]
[1756295804969,0.70492267,111400.0,111390.0,1.43059515]
[1756295805580,0.70492267,111400.0,111390.0,1.79139515]
[1756295806270,0.44370752,111400.0,111390.0,1.90435171]
[1756295806471,0.70492267,111400.0,111390.0,1.90435171]
[1756295806768,0.44370752,111400.0,111390.0,1.99412221]
[1756295807774,0.44370752,111400.0,111390.0,1.88116565]
[1756295808485,0.44370752,111400.0,111390.0,1.6199505]
[1756295808679,0.70492267,111400.0,111390.0,1.53018]
[1756295808973,0.44370752,111400.0,111390.0,1.90434395]
[1756295809169,0.44370752,111400.0,111390.0,1.6431288]
[1756295809364,0.44370752,111400.0,111390.0,1.90434395]
[1756295809971,0.70492267,111400.0,111390.0,1.90434395]
[1756295810170,0.52702682,111400.0,111390.0,1.94523395]
[1756295810778,0.26581167,111400.0,111390.0,1.94523395]
[1756295810971,0.52702682,111400.0,111390.0,1.94523395]
[1756295811572,0.26581167,111400.0,111390.0,1.94523395]
[1756295812174,0.29382167,111400.0,111390.0,1.94523395]
[1756295812373,0.29382167,111400.0,111390.0,1.6840188]
[1756295812679,0.29382167,111400.0,111390.0,1.94523395]
[1756295813772,0.29382167,111400.0,111390.0,2.03500475]
[1756295815270,0.29382167,111400.0,111390.0,1.92205595]
[1756295817372,0.11888496,111400.0,111390.0,1.92205595]
[1756295817571,0.20864846,111400.0,111390.0,1.92205595]
[1756295817774,0.16116752,111400.0,111390.0,2.1832711]
[1756295817973,0.0897635,111400.0,111390.0,2.1832711]
[1756295824180,0.0897635,111400.0,111390.0,1.92205535]
[1756295825478,0.0897635,111400.0,111390.0,2.03500415]
[1756295826883,0.0897635,111400.0,111390.0,1.92205535]
[1756295828586,0.0897627,111400.0,111390.0,2.1832641]
[1756295831382,0.0897627,111400.0,111390.0,2.29620812]
[1756295833483,0.0897627,111400.0,111390.0,2.1832641]
[1756295834586,0.0897627,111400.0,111390.0,2.29621097]
[1756295836885,0.01816,111410.0,111400.0,0.0422]
[1756295837089,0.2353783,111420.0,111410.0,0.2388247]
[1756295837290,0.2353783,111420.0,111410.0,1.97604515]
[1756295837690,0.24594169,111420.0,111410.0,1.97604515]
[1756295838992,0.24794169,111420.0,111410.0,1.97604515]
[1756295839590,0.24794169,111420.0,111410.0,1.71483]
[1756295839990,0.24794169,111420.0,111410.0,1.97604515]
[1756295840289,0.25094169,111420.0,111410.0,2.06579945]
[1756295840797,0.25094169,111420.0,111410.0,1.24083945]
[1756295843294,0.25094169,111420.0,111410.0,1.15108515]
[1756295845688,0.51215684,111420.0,111410.0,0.52907]
[1756295846093,0.51215684,111420.0,111410.0,0.79028515]
[1756295847297,0.51215684,111420.0,111410.0,0.14907]
[1756295847495,0.25094169,111420.0,111410.0,0.41028515]
[1756295847697,0.51215684,111420.0,111410.0,0.14907]
[1756295847996,0.51215684,111420.0,111410.0,0.41028515]
[1756295849598,0.51675684,111420.0,111410.0,0.41028515]
[1756295849897,1.34163684,111420.0,111410.0,0.41028515]
[1756295851800,1.08042169,111420.0,111410.0,0.41028515]
[1756295852193,1.34163684,111420.0,111410.0,0.41028515]
[1756295854501,1.08042169,111420.0,111410.0,0.41028515]
[1756295854702,1.34163684,111420.0,111410.0,0.41028515]
[1756295855999,1.34163684,111420.0,111410.0,0.14907]
[1756295856200,1.34163684,111420.0,111410.0,0.41028515]
[1756295856595,1.08042169,111420.0,111410.0,0.41028515]
[1756295857202,1.34163684,111420.0,111410.0,0.41028515]
[1756295857601,1.08042169,111420.0,111410.0,0.41028515]
[1756295857803,1.34163684,111420.0,111410.0,0.41028515]
[1756295858500,1.34159684,111420.0,111410.0,0.78028515]
[1756295861008,1.34159684,111420.0,111410.0,0.51907]
[1756295861205,1.08038169,111420.0,111410.0,0.78028515]
[1756295861505,1.34159684,111420.0,111410.0,0.78028515]
[1756295867207,1.08038169,111420.0,111410.0,0.78028515]
[1756295867408,1.04817169,111420.0,111410.0,0.87003955]
[1756295867608,1.08027169,111420.0,111410.0,0.87003955]
[1756295868908,1.34148684,111420.0,111410.0,0.87003955]
[1756295869409,0.51672684,111420.0,111410.0,0.87003955]
[1756295869709,1.34148684,111420.0,111410.0,0.87003955]
[1756295869906,1.08027169,111420.0,111410.0,0.87003955]
[1756295870814,1.08027169,111420.0,111410.0,0.78028515]
[1756295871606,1.34148684,111420.0,111410.0,0.69212515]
[1756295871806,1.70228684,111420.0,111410.0,0.30272515]
[1756295872011,0.2363643,111410.0,111400.0,1.0591216]
[1756295872214,0.49757945,111410.0,111400.0,1.9415519]
[1756295872710,0.2363643,111410.0,111400.0,1.9415519]
[1756295873315,0.2746643,111410.0,111400.0,1.9415519]
[1756295873612,0.2766643,111410.0,111400.0,1.9415519]
[1756295874213,0.2776643,111410.0,111400.0,1.9415519]
[1756295874714,0.2776643,111410.0,111400.0,0.5944016]
[1756295874916,0.2776643,111410.0,111400.0,1.9415519]
[1756295876823,0.2776643,111410.0,111400.0,2.3023519]
[1756295877224,0.2776643,111410.0,111400.0,1.7799216]
[1756295877426,0.2776643,111410.0,111400.0,2.3023519]
[1756295882125,0.2776643,111410.0,111400.0,2.41529877]
[1756295884029,0.2776643,111410.0,111400.0,1.89286847]
[1756295884231,0.2776643,111410.0,111400.0,2.41529877]
[1756295884529,0.2776643,111410.0,111400.0,2.3023519]
[1756295885029,0.2776643,111410.0,111400.0,1.7799216]
[1756295885229,0.2776643,111410.0,111400.0,2.3023519]
[1756295885629,0.2776643,111410.0,111400.0,1.7799216]
[1756295885825,0.2776643,111410.0,111400.0,1.69016]
[1756295886129,0.2776643,111410.0,111400.0,2.2125903]
[1756295886526,0.2173043,111410.0,111400.0,2.2125903]
[1756295886727,0.1991743,111410.0,111400.0,2.3023528]
[1756295890928,0.1485943,111410.0,111400.0,2.3023528]
[1756295891125,0.1782643,111410.0,111400.0,2.3023528]
[1756295891434,0.2393743,111410.0,111400.0,2.3023528]
[1756295893534,0.2393743,111410.0,111400.0,1.7799225]
[1756295893735,0.2393743,111410.0,111400.0,2.3023528]
[1756295894731,0.2393743,111410.0,111400.0,2.41529967]
[1756295897332,0.1310543,111410.0,111400.0,2.41529967]
[1756295897536,0.1310543,111410.0,111400.0,2.3023528]
[1756295900540,0.03545772,111410.0,111400.0,1.8523503]
[1756295900834,0.12521202,111410.0,111400.0,2.2323503]
[1756295901044,0.1767043,111410.0,111400.0,2.2323503]
[1756295902336,0.1767043,111410.0,111400.0,1.4078703]
[1756295902543,0.2172443,111410.0,111400.0,0.88544]
[1756295902740,0.2501043,111410.0,111400.0,2.2323503]
[1756295903748,0.2172443,111410.0,111400.0,2.2323503]
[1756295904944,0.2172443,111410.0,111400.0,1.4078703]
[1756295905143,0.2172443,111410.0,111400.0,2.2323103]
[1756295905643,0.2501043,111410.0,111400.0,2.2323103]
[1756295906845,0.2501043,111410.0,111400.0,2.34525717]
[1756295907945,0.2501043,111410.0,111400.0,2.2323103]
[1756295908244,0.1672043,111410.0,111400.0,2.2323103]
[1756295908444,0.1954543,111410.0,111400.0,2.2323103]
[1756295909046,0.2291643,111410.0,111400.0,2.2323103]
[1756295909446,0.1954543,111410.0,111400.0,2.2323103]
[1756295912348,0.1672043,111410.0,111400.0,2.2323103]
[1756295912948,0.1945943,111410.0,111400.0,2.2323103]
[1756295914349,0.1945943,111410.0,111400.0,1.70988]
[1756295914549,0.1945943,111410.0,111400.0,2.2323103]
[1756295915050,0.1672043,111410.0,111400.0,2.2323103]
[1756295915547,0.1672043,111410.0,111400.0,1.70988]
[1756295915747,0.1672043,111410.0,111400.0,2.2323103]
[1756295916248,0.1945943,111410.0,111400.0,2.2323103]
[1756295916950,0.1945943,111410.0,111400.0,1.70988]
[1756295917150,0.2283043,111410.0,111400.0,2.2323103]
[1756295917353,0.2283043,111410.0,111400.0,1.70988]
[1756295917548,0.1945943,111410.0,111400.0,2.2323103]
[1756295918750,0.2283043,111410.0,111400.0,2.2323103]
[1756295919752,0.1945943,111410.0,111400.0,2.2323103]
[1756295920053,0.1672043,111410.0,111400.0,2.3451863]
[1756295920847,0.1672043,111410.0,111400.0,0.998316]
[1756295920848,0.53069945,111410.0,111400.0,0.998316]
[1756295921051,0.52572945,111410.0,111400.0,0.637516]
[1756295921348,1.17023945,111410.0,111400.0,0.337516]
[1756295921547,1.17023945,111410.0,111400.0,0.22464]
[1756295922855,1.4314546,111410.0,111400.0,0.22464]
[1756295923058,1.17023945,111410.0,111400.0,0.22464]
[1756295923251,1.17023945,111410.0,111400.0,0.19933]
[1756295923448,1.17023945,111410.0,111400.0,0.22426]
[1756295924355,1.17023945,111410.0,111400.0,0.19933]
[1756295925457,1.4314546,111410.0,111400.0,0.19933]
[1756295925951,1.17023945,111410.0,111400.0,0.19933]
[1756295926156,1.99455945,111410.0,111400.0,0.22426]
[1756295926557,1.7333443,111410.0,111400.0,0.22426]
[1756295926756,1.99455945,111410.0,111400.0,0.22426]
[1756295929261,1.99455945,111410.0,111400.0,0.19933]
[1756295930464,1.74455945,111410.0,111400.0,0.19933]
[1756295934862,2.0057746,111410.0,111400.0,0.04958]
[1756295935466,1.74455945,111410.0,111400.0,0.0833]
[1756295936161,1.74455945,111410.0,111400.0,0.10215]
[1756295936663,2.06455945,111410.0,111400.0,0.06843]
[1756295936863,2.08455945,111410.0,111400.0,0.06843]
[1756295937361,1.74455945,111410.0,111400.0,0.06843]
[1756295937565,0.2398821,111400.0,111390.0,0.14791]
[1756295937865,0.86189725,111400.0,111390.0,0.67912515]
[1756295938364,0.86189725,111400.0,111390.0,0.41791]
[1756295938565,0.86189725,111400.0,111390.0,0.67912515]
[1756295938959,1.68625725,111400.0,111390.0,0.67912515]
[1756295939565,1.68625725,111400.0,111390.0,0.41791]
[1756295939767,1.68625725,111400.0,111390.0,0.67912515]
[1756295940766,1.68625725,111400.0,111390.0,0.41791]
[1756295940966,1.68625725,111400.0,111390.0,0.67912515]
[1756295941267,1.75972207,111400.0,111390.0,0.67912515]
[1756295941963,0.93536207,111400.0,111390.0,0.67912515]
[1756295942165,1.75972207,111400.0,111390.0,0.67912515]
[1756295942761,1.07876207,111400.0,111390.0,0.67912515]
[1756295942964,1.90308207,111400.0,111390.0,0.67912515]
[1756295943365,1.07876207,111400.0,111390.0,0.67912515]
[1756295943566,1.90308207,111400.0,111390.0,0.67912515]
[1756295944070,1.90308207,111400.0,111390.0,0.41791]
[1756295944368,1.90308207,111400.0,111390.0,0.67912515]
[1756295944869,1.90308207,111400.0,111390.0,0.41791]
[1756295945164,2.16429722,111400.0,111390.0,0.16926]
[1756295945565,2.16429722,111400.0,111390.0,0.20415]
[1756295946568,2.16429722,111400.0,111390.0,0.18495]
[1756295946772,2.16429722,111400.0,111390.0,0.20367]
[1756295950065,2.16429722,111400.0,111390.0,0.18495]
[1756295950565,1.33997722,111400.0,111390.0,0.316546]
[1756295950870,2.16425722,111400.0,111390.0,0.340316]
[1756295951066,2.16425722,111400.0,111390.0,0.60153115]
[1756295951468,2.16425722,111400.0,111390.0,0.340316]
[1756295951771,2.16425722,111400.0,111390.0,0.60153115]
[1756295951971,2.16425722,111400.0,111390.0,0.316546]
[1756295953767,2.16425722,111400.0,111390.0,0.15006]
[1756295953972,2.16425722,111400.0,111390.0,0.13121]
[1756295954666,2.16425722,111400.0,111390.0,0.1661]
[1756295955672,2.16425722,111400.0,111390.0,0.20475]
[1756295955875,0.81754692,111400.0,111390.0,0.48973515]
[1756295956180,1.90304207,111400.0,111390.0,0.48973515]
[1756295958763,1.07876207,111400.0,111390.0,0.48973515]
[1756295959064,1.90300207,111400.0,111390.0,0.48973515]
[1756295960871,1.90300207,111400.0,111390.0,0.22852]
[1756295961377,1.90300207,111400.0,111390.0,0.48973515]
[1756295962674,1.54220207,111400.0,111390.0,0.48973515]
[1756295962868,1.90300207,111400.0,111390.0,0.48973515]
[1756295966978,2.16421722,111400.0,111390.0,0.48973515]
[1756295970279,2.16421722,111400.0,111390.0,0.60261115]
[1756295970684,1.80341722,111400.0,111390.0,0.60261115]
[1756295970980,2.16421722,111400.0,111390.0,0.60261115]
[1756295973980,1.90300207,111400.0,111390.0,0.22852]
[1756295974281,1.90300207,111400.0,111390.0,0.48973515]
[1756295975383,1.90300207,111400.0,111390.0,0.22852]
[1756295975584,1.90300207,111400.0,111390.0,0.48973515]
[1756295975885,1.90300207,111400.0,111390.0,0.20475]
[1756295976074,2.16421722,111400.0,111390.0,0.44724515]
[1756295977086,2.16421722,111400.0,111390.0,0.18603]
[1756295977288,2.16421722,111400.0,111390.0,0.13121]
[1756295977487,2.16421722,111400.0,111390.0,0.08]
[1756295978685,1.64178692,111400.0,111390.0,0.08]
[1756295978886,2.16421722,111400.0,111390.0,0.16529]
[1756295979088,2.16421722,111400.0,111390.0,0.13296]
[1756295980788,2.16421722,111400.0,111390.0,0.10303]
[1756295982386,2.16421722,111400.0,111390.0,0.20133]
[1756295982897,2.16421722,111400.0,111390.0,0.13296]
[1756295985091,2.16421722,111400.0,111390.0,0.10303]
[1756295989197,2.16385722,111400.0,111390.0,0.39417515]
[1756295990291,2.16385722,111400.0,111390.0,0.50705115]
[1756295990491,2.16385722,111400.0,111390.0,0.245836]
[1756295990689,2.16385722,111400.0,111390.0,0.50705115]
[1756295991090,2.16385722,111400.0,111390.0,0.39417515]
[1756295991286,2.16385722,111400.0,111390.0,0.42650515]
[1756295992100,2.16385722,111400.0,111390.0,0.13296]
[1756295992397,2.16385722,111400.0,111390.0,0.39417515]
[1756295993398,1.64142692,111400.0,111390.0,0.39417515]
[1756295993598,1.64142692,111400.0,111390.0,0.46254515]
[1756295993796,2.16385722,111400.0,111390.0,0.41223515]
[1756295995093,2.16385722,111400.0,111390.0,0.34121515]
[1756295995492,2.16385722,111400.0,111390.0,0.42650515]
[1756295995896,2.16385722,111400.0,111390.0,0.39417515]
[1756295998398,2.16385722,111400.0,111390.0,0.36424515]
[1756295998600,2.16385722,111400.0,111390.0,0.10303]
[1756295998800,2.16385722,111400.0,111390.0,0.36424515]
[1756296000407,2.16385722,111400.0,111390.0,0.34121515]
[1756296000604,0.2342306,111390.0,111380.0,0.112876]
[1756296000916,0.85624575,111390.0,111380.0,0.112876]
[1756296001112,0.2342387,111380.0,111370.0,0.87495115]
[1756296001314,0.49545385,111380.0,111370.0,1.25495115]
[1756296001514,0.49545385,111380.0,111370.0,1.71787115]
[1756296002112,0.49545385,111380.0,111370.0,0.83880115]
[1756296002313,0.49445385,111380.0,111370.0,0.87215115]
[1756296002509,1.940189,111380.0,111370.0,0.112876]
[1756296003410,1.616369,111380.0,111370.0,0.232936]
[1756296003712,2.17783385,111380.0,111370.0,0.254936]
[1756296003914,2.17783385,111380.0,111370.0,0.51615115]
[1756296004816,2.17783385,111380.0,111370.0,0.40327515]
[1756296005314,2.17783385,111380.0,111370.0,0.38327515]
[1756296005510,1.35415385,111380.0,111370.0,0.12206]
[1756296005705,2.17787385,111380.0,111370.0,0.74327515]
[1756296006110,2.17783385,111380.0,111370.0,0.70327515]
[1756296007315,1.9166187,111380.0,111370.0,0.38327515]
[1756296007517,2.17783385,111380.0,111370.0,0.76327515]
[1756296007711,2.17783385,111380.0,111370.0,0.04328]
[1756296008015,2.439049,111380.0,111370.0,0.004]
[1756296010015,0.0897944,111360.0,111350.0,0.38317515]
[1756296010221,0.49546955,111360.0,111350.0,0.77127515]
[1756296010420,0.2342544,111360.0,111350.0,0.77127515]
[1756296011123,0.2342544,111360.0,111350.0,0.77427515]
[1756296011522,0.2342544,111360.0,111350.0,0.77827515]
[1756296011824,0.2342544,111360.0,111350.0,0.51706]
[1756296012020,0.2342544,111360.0,111350.0,1.60195515]
[1756296012422,0.24411052,111360.0,111350.0,1.60195515]
[1756296012917,0.16225976,111360.0,111350.0,1.60195515]
[1756296013112,0.66215976,111360.0,111350.0,1.71473937]
[1756296014524,0.66215976,111360.0,111350.0,1.60195515]
[1756296014722,0.71893976,111360.0,111350.0,0.62983041]
[1756296014927,0.71893976,111360.0,111350.0,0.89104556]
[1756296015127,0.98015491,111360.0,111350.0,1.71472556]
[1756296015525,0.71893976,111360.0,111350.0,1.71472556]
[1756296015724,0.69159976,111360.0,111350.0,1.71472556]
[1756296015926,0.69159976,111360.0,111350.0,1.45351041]
[1756296016326,0.69159976,111360.0,111350.0,1.71472556]
[1756296016630,0.69159976,111360.0,111350.0,0.89104556]
[1756296016825,0.69159976,111360.0,111350.0,1.71484556]
[1756296017226,0.69159976,111360.0,111350.0,1.80464806]
[1756296018329,0.69159976,111360.0,111350.0,2.16544806]
[1756296018929,0.69159976,111360.0,111350.0,1.90423291]
[1756296019233,0.69159976,111360.0,111350.0,2.16544806]
[1756296019429,0.5896945,111360.0,111350.0,2.42666321]
[1756296019629,0.5896945,111360.0,111350.0,2.3138928]
[1756296019830,0.5896945,111360.0,111350.0,2.42663541]
[1756296020133,0.5896945,111360.0,111350.0,2.3138928]
[1756296020433,0.4999,111360.0,111350.0,2.3138928]
[1756296020633,0.4649,111360.0,111350.0,2.5638928]
[1756296024022,0.4649,111360.0,111350.0,2.5842086]
[1756296024731,0.1808022,111370.0,111360.0,0.2078545]
[1756296024930,0.2069122,111370.0,111360.0,1.54137212]
[1756296025228,0.6274622,111370.0,111360.0,1.4285848]
[1756296025428,0.5932322,111370.0,111360.0,1.4285848]
[1756296025923,0.6274622,111370.0,111360.0,1.4285848]
[1756296026328,0.6274622,111370.0,111360.0,2.2545048]
[1756296027232,0.6274622,111370.0,111360.0,2.2565048]
[1756296028836,0.6535722,111370.0,111360.0,2.2565048]
[1756296029536,0.6535722,111370.0,111360.0,2.36943271]
[1756296029731,0.5932322,111370.0,111360.0,2.36943271]
[1756296030627,0.5932322,111370.0,111360.0,1.54551271]
[1756296030930,0.5932322,111370.0,111360.0,2.36923271]
[1756296031333,0.6282222,111370.0,111360.0,2.36923271]
[1756296032536,0.6553622,111370.0,111360.0,2.36923271]
[1756296034340,0.6282222,111370.0,111360.0,2.36923271]
[1756296034539,0.5932322,111370.0,111360.0,2.36923271]
[1756296034741,0.5932322,111370.0,111360.0,2.2563048]
[1756296035441,0.6282222,111370.0,111360.0,2.2563048]
[1756296038246,0.6282222,111370.0,111360.0,1.4325848]
[1756296038542,0.6553622,111370.0,111360.0,2.2563048]
[1756296039342,0.6282222,111370.0,111360.0,2.2563048]
[1756296039643,0.4649,111370.0,111360.0,2.49801995]
[1756296040140,0.4649,111370.0,111360.0,2.74801995]
[1756296040944,0.5546864,111370.0,111360.0,1.92429995]
[1756296041240,0.5546864,111370.0,111360.0,2.4867648]
[1756296042041,0.5546864,111370.0,111360.0,2.74797995]
[1756296042543,0.5546864,111370.0,111360.0,2.90900767]
[1756296043741,0.4649,111370.0,111360.0,2.90900767]
[1756296044140,0.4649,111370.0,111360.0,2.08532767]
[1756296044434,0.4649,111370.0,111360.0,2.90896767]
[1756296044642,0.5546864,111370.0,111360.0,2.90896767]
[1756296045841,0.5546864,111370.0,111360.0,1.82411252]
[1756296046045,0.5546864,111370.0,111360.0,2.64775252]
[1756296046344,0.6168164,111370.0,111360.0,2.64775252]
[1756296046541,0.6168164,111370.0,111360.0,1.82411252]
[1756296046839,0.6168164,111370.0,111360.0,2.64775252]
[1756296047744,0.5896764,111370.0,111360.0,2.64775252]
[1756296047939,0.6168164,111370.0,111360.0,2.64775252]
[1756296048143,0.6168164,111370.0,111360.0,2.64771252]
[1756296048551,0.5896764,111370.0,111360.0,2.64771252]
[1756296048942,0.5546864,111370.0,111360.0,2.64771252]
[1756296049947,0.5546864,111370.0,111360.0,2.4866848]
[1756296050749,0.6168164,111370.0,111360.0,1.9642545]
[1756296050946,0.6168164,111370.0,111360.0,2.4866848]
[1756296051749,0.6168164,111370.0,111360.0,1.6630848]
[1756296051951,0.6168164,111370.0,111360.0,2.4866848]
[1756296052751,0.5896764,111370.0,111360.0,2.4866848]
[1756296053554,0.5546864,111370.0,111360.0,2.4866848]
[1756296053747,0.4649,111370.0,111360.0,2.74789995]
[1756296057056,0.4649,111370.0,111360.0,2.90892767]
[1756296059057,0.20173399,111390.0,111380.0,0.2391083]
[1756296059257,0.20173399,111390.0,111380.0,2.63630483]
[1756296059459,0.20173399,111390.0,111380.0,2.89751998]
[1756296059655,0.1645265,111390.0,111380.0,2.89751998]
[1756296059956,0.1645265,111390.0,111380.0,2.63630483]
[1756296060357,0.1912165,111390.0,111380.0,2.11387453]
[1756296060558,0.1912165,111390.0,111380.0,2.63630483]
[1756296062160,0.1645265,111390.0,111380.0,2.63630483]
[1756296062651,0.1912165,111390.0,111380.0,2.11387453]
[1756296062855,0.1912165,111390.0,111380.0,2.63630483]
[1756296063252,0.1912165,111390.0,111380.0,1.36216653]
[1756296063457,0.2208265,111390.0,111380.0,2.18568653]
[1756296063964,0.48204165,111390.0,111380.0,2.18568653]
[1756296064166,0.48204165,111390.0,111380.0,1.66325623]
[1756296064364,0.48204165,111390.0,111380.0,2.18568653]
[1756296064568,0.2208265,111390.0,111380.0,2.2984746]
[1756296065264,0.2208265,111390.0,111380.0,2.7490528]
[1756296065464,0.1912165,111390.0,111380.0,2.7490528]
[1756296065660,0.1912165,111390.0,111380.0,2.74904342]
[1756296066064,0.1295365,111390.0,111380.0,2.63626473]
[1756296066366,0.0897765,111390.0,111380.0,2.63626473]
[1756296067064,0.23776345,111400.0,111390.0,0.08977]
[1756296067263,0.21107345,111400.0,111390.0,1.27017498]
[1756296067462,0.21107345,111400.0,111390.0,1.28816498]
[1756296068168,0.24310345,111400.0,111390.0,1.28816498]
[1756296068466,0.13860863,111400.0,111390.0,1.28816498]
[1756296068668,0.01053083,111400.0,111390.0,1.28816498]
[1756296068868,0.001,111400.0,111390.0,1.28816498]
[1756296069259,0.002,111400.0,111390.0,1.28816498]
[1756296069862,0.002,111400.0,111390.0,1.40083132]
[1756296070365,0.002,111400.0,111390.0,1.65083132]
[1756296070566,0.2049712,111420.0,111410.0,0.2390837]
[1756296070767,0.2349712,111420.0,111410.0,2.08158868]
[1756296071163,0.2448802,111420.0,111410.0,2.08158868]
[1756296071966,0.2128502,111420.0,111410.0,2.08158868]
[1756296072168,0.2478802,111420.0,111410.0,2.08158868]
[1756296072471,0.2498802,111420.0,111410.0,2.08158868]
[1756296073572,0.2498802,111420.0,111410.0,1.7333237]
[1756296073773,0.2498802,111420.0,111410.0,2.08158868]
[1756296075162,0.2498802,111420.0,111410.0,1.64525]
[1756296075365,0.2498802,111420.0,111410.0,1.99351498]
[1756296076175,0.2198802,111420.0,111410.0,1.16839498]
[1756296076473,0.2198802,111420.0,111410.0,2.08318878]
[1756296076869,0.2198802,111420.0,111410.0,1.99343498]
[1756296077174,0.2198802,111420.0,111410.0,2.08318868]
[1756296077971,0.2494902,111420.0,111410.0,1.16839498]
[1756296078177,0.2494902,111420.0,111410.0,1.99419498]
[1756296078472,0.2474902,111420.0,111410.0,1.64577]
[1756296078676,0.2454902,111420.0,111410.0,1.7355238]
[1756296078877,0.2464902,111420.0,111410.0,1.7355238]
[1756296079779,0.2464902,111420.0,111410.0,0.82013]
[1756296079979,1.20555518,111420.0,111410.0,1.25318]
[1756296080178,1.20555518,111420.0,111410.0,1.28573]
[1756296080379,0.8572902,111420.0,111410.0,1.28573]
[1756296080578,1.20555518,111420.0,111410.0,1.28573]
[1756296081272,1.20555518,111420.0,111410.0,0.07046]
[1756296081477,1.20555518,111420.0,111400.0,0.97625]
[1756296081478,0.2345838,111410.0,111400.0,0.97625]